[Event "HUN-chT Youth 2019"]
[Site "Budapest"]
[Date "2019.10.28"]
[Round "4.5"]
[White "Bernath, Bence"]
[Black "Kiss, Rebeka"]
[Result "1-0"]
[ECO "C97"]
[WhiteElo "2004"]
[BlackElo "1743"]
[Annotator "NA"]
[PlyCount "187"]
[EventDate "2019.10.26"]
[EventType "team-tourn"]
[EventCountry "HUN"]
[SourceTitle "playchess.com"]
[Source "ChessBase"]
[SourceQuality "1"]
[TimeControl "5400+30"]

1. e4 {[%emt 0:00:00]} e5 {[%emt 0:00:00]} 2. Nf3 {[%emt 0:00:14]} Nc6 {[%emt 0:00:08]} 3. Bb5 {[%emt 0:00:27]} a6 {[%emt 0:00:27]} 4. Ba4 {[%emt 0:00:36]} Nf6 {[%emt 0:00:45]} 5. O-O {[%emt 0:00:29]} Be7 {[%emt 0:01:04]} 6. Re1 {[%emt 0:00:42]} b5 {[%emt 0:00:21]} 7. Bb3 {[%emt 0:00:45]} d6 {[%emt 0:02:05]} 8. c3 {[%emt 0:00:41]} O-O {[%emt 0:00:26]} 9. h3 {[%emt 0:00:30]} Na5 {[%emt 0:00:23]} 10. Bc2 {[%emt 0:00:34]} c5 {[%emt 0:00:28]} 11. d4 {[%emt 0:00:44]} Qc7 {[%emt 0:00:54]} 12. Nbd2 {[%emt 0:00:48]} Re8 {[%emt 0:02:25]} 13. Nf1 {[%emt 0:02:52]} Bf8 {[%emt 0:01:30]} 14. Ng3 {[%emt 0:03:47] C97: Closed Ruy Lopez: Chigorin Defence: 11 d4 Qc7, sidelines} g6 {[%emt 0:00:49]} 15. d5 {[%emt 0:07:39]} c4 {[%emt 0:06:58]} 16. Nh2 {[%emt 0:04:18]} (16. Bg5 Bg7 17. Qd2 Nb7 18. Nh4 Nc5 19. Bh6 Bxh6 20. Qxh6 Qe7 21. f4 exf4 22. Qxf4 {1-0 (75) Robson,R (2675)-Stukopin,A (2586) chess.com INT 2017}) 16... Bg7 {[%emt 0:02:37]} 17. Kh1 $146 {[%emt 0:03:50]} (17. b4 $16 cxb3 18. axb3) ({Predecessor:} 17. Bg5 h6 18. Be3 Kh7 19. Qd2 Nd7 20. Re2 Nb6 21. Rf1 Nb7 22. f4 exf4 23. Bxf4 Be5 24. Ref2 Re7 25. Nh5 g5 26. Bxg5 {1-0 (26) Gaffagan,S (1996)-Canessa,J (1958) Burlingame 2019}) 17... Nb7 {[%emt 0:07:24]} 18. f4 {[%emt 0:00:53]} exf4 {[%emt 0:00:28]} 19. Bxf4 {[%emt 0:00:08]} Nd7 {[%emt 0:00:34]} 20. Nf3 {[%emt 0:01:50]} Nbc5 {[%emt 0:11:20]} 21. Qd2 {[%emt 0:02:43]} a5 {[%emt 0:08:07]} 22. Bh6 {[%emt 0:02:45]} Bh8 {[%emt 0:00:14]} 23. Qf4 {[%emt 0:02:07]} Ne5 {[%emt 0:01:30]} 24. Rf1 {[%emt 0:08:37]} Qe7 {[%emt 0:13:31]} 25. Nd4 {[%emt 0:07:31]} Ncd3 {[%emt 0:11:51]} 26. Bxd3 {[%emt 0:02:30]} Nxd3 {[%emt 0:00:08]} 27. Nc6 {[%emt 0:03:56]} Nxf4 {[%emt 0:03:29]} 28. Nxe7+ {[%emt 0:00:08]} Rxe7 {[%emt 0:00:09]} 29. Bxf4 {[%emt 0:00:04]} Ra6 {[%emt 0:02:36]} 30. a3 {[%emt 0:01:54]} Rb6 {[%emt 0:02:33]} 31. Be3 {[%emt 0:02:02]} Rb8 {[%emt 0:02:17]} 32. Bg5 {[%emt 0:03:01]} Re8 {[%emt 0:02:15]} 33. Bf6 {[%emt 0:01:03]} Bg7 {[%emt 0:01:18]} 34. Rf2 {[%emt 0:01:15]} Ba6 {[%emt 0:02:17]} 35. Raf1 {[%emt 0:01:37]} Rb7 {[%emt 0:02:24]} 36. Kg1 {[%emt 0:01:14]} h5 {[%emt 0:01:39]} 37. Bxg7 {[%emt 0:01:39]} Kxg7 {[%emt 0:00:02]} 38. h4 {[%emt 0:02:56]} Rc7 {[%emt 0:01:27]} 39. Rf6 {[%emt 0:00:55]} Rd8 {[%emt 0:01:11]} 40. e5 {[%emt 0:02:56]} Bb7 {[%emt 0:00:30]} 41. e6 {[%emt 0:01:05]} ({And not} 41. exd6 Rcd7 $17) 41... Bxd5 {[%emt 0:00:22]} (41... Rf8 $1 $14) 42. Rxf7+ {[%emt 0:00:11]} Rxf7 {[%emt 0:00:16]} 43. Rxf7+ {[%emt 0:00:09]} Kg8 {[%emt 0:00:29]} 44. Rd7 {[%emt 0:00:47]} Re8 {[%emt 0:01:17]} 45. e7 {[%emt 0:00:21]} Kf7 {[%emt 0:00:43]} 46. Rxd6 {[%emt 0:00:05]} Be6 {[%emt 0:00:21]} 47. Rb6 {[%emt 0:00:16]} Bd7 {[%emt 0:00:18]} 48. Ne4 {[%emt 0:00:20]} Rxe7 $16 {[%emt 0:00:40] [#]} 49. Nd6+ $1 {[%emt 0:00:10]} Kg7 {[%emt 0:01:07]} 50. Nxb5 {[%emt 0:01:18]} Bxb5 51. Rxb5 Re2 {[%emt 0:06:23]} 52. Rxa5 {[%emt 0:02:40]} Rxb2 {[%emt 0:00:06]} 53. Rc5 {[%emt 0:00:24]} Rb3 {[%emt 0:00:36]} 54. Rxc4 {[%emt 0:00:04]} Rxa3 {[%emt 0:00:02]} 55. Rc6 {[%emt 0:00:08]} Ra2 {[%emt 0:00:22]} 56. c4 {[%emt 0:00:05]} Rc2 {[%emt 0:00:07]} 57. c5 {[%emt 0:00:16]} Rc4 {[%emt 0:00:14]} 58. g3 {[%emt 0:00:29]} Rc2 {[%emt 0:00:03]} 59. Rc7+ {[%emt 0:00:21]} Kf6 {[%emt 0:00:19]} 60. Rc8 {[%emt 0:00:32]} Kf7 {[%emt 0:00:19]} 61. c6 {[%emt 0:00:07]} Kg7 {[%emt 0:01:04]} 62. c7 {[%emt 0:00:11]} Kh7 {[%emt 0:00:07]} 63. Kf1 {[%emt 0:00:06]} Kg7 {[%emt 0:00:06]} 64. Ke1 {[%emt 0:00:04]} Kh7 {[%emt 0:00:13]} 65. Kd1 {[%emt 0:00:03]} Rc5 {[%emt 0:02:07]} 66. Kd2 {[%emt 0:00:05]} Kg7 {[%emt 0:00:23]} 67. Kd3 {[%emt 0:00:27]} g5 {[%emt 0:00:39]} 68. hxg5 {[%emt 0:00:42]} Rc1 {[%emt 0:00:54]} 69. Ke4 {[%emt 0:00:17]} Re1+ {[%emt 0:00:18]} 70. Kf3 {[%emt 0:00:28]} Rc1 {[%emt 0:00:20]} 71. g6 {[%emt 0:00:44]} Rc4 {[%emt 0:00:35]} 72. Ke3 {[%emt 0:00:13]} Rc2 {[%emt 0:00:52]} 73. Kd4 {[%emt 0:00:42]} Rc6 {[%emt 0:00:26]} 74. Kd5 {[%emt 0:00:07]} Rc1 {[%emt 0:00:05]} 75. Ke6 {[%emt 0:00:34]} Re1+ {[%emt 0:00:49]} 76. Kf5 {[%emt 0:00:17]} Rf1+ {[%emt 0:00:33]} 77. Kg5 {[%emt 0:00:04]} Rc1 {[%emt 0:00:07]} 78. Kxh5 {[%emt 0:00:04]} Rh1+ {[%emt 0:00:20]} 79. Kg5 {[%emt 0:00:15]} Rc1 {[%emt 0:00:06]} 80. g4 {[%emt 0:00:20]} Rc4 {[%emt 0:00:47]} 81. Kh5 {[%emt 0:00:17]} Rc5+ {[%emt 0:01:26]} 82. g5 {[%emt 0:01:34]} Rc4 {[%emt 0:00:39]} 83. Ra8 {[%emt 0:00:32]} Rxc7 {[%emt 0:00:09]} 84. Ra4 {[%emt 0:00:05]} Re7 {[%emt 0:00:22]} 85. Rf4 {[%emt 0:00:05]} Rd7 {[%emt 0:00:08]} 86. Rf7+ {[%emt 0:00:21]} Rxf7 {[%emt 0:00:12]} 87. gxf7 {[%emt 0:00:04]} Kxf7 {[%emt 0:00:06]} 88. Kh6 {[%emt 0:00:04]} Kg8 {[%emt 0:00:24]} 89. Kg6 {[%emt 0:00:05]} Kh8 90. Kf7 Kh7 {[%emt 0:00:59]} 91. g6+ {[%emt 0:00:36]} Kh6 {[%emt 0:00:09]} 92. g7 {[%emt 0:00:04]} Kh5 {[%emt 0:00:06]} 93. g8=Q {[%emt 0:00:04]} Kh6 {[%emt 0:00:10]} 94. Qg6# {[%emt 0:00:04]} 1-0

[Event "HUN-chT Youth 2019"]
[Site "Budapest"]
[Date "2019.10.28"]
[Round "4.5"]
[White "Toth, Timea"]
[Black "Molnar, Dalma Reka"]
[Result "1-0"]
[ECO "A36"]
[WhiteElo "1964"]
[BlackElo "1088"]
[Annotator "NA RC"]
[PlyCount "105"]
[EventDate "2019.10.26"]
[EventType "team-tourn"]
[EventCountry "HUN"]
[SourceTitle "playchess.com"]
[Source "ChessBase"]
[SourceQuality "1"]
[TimeControl "5400+30"]

1. c4 {[%emt 0:00:00]} c5 {[%emt 0:00:00]} 2. Nc3 {[%emt 0:00:00]} Nc6 {[%emt 0:00:00]} 3. g3 {[%emt 0:00:00]} g6 {[%emt 0:00:00]} 4. Bg2 {[%emt 0:00:00]} Bg7 {[%emt 0:00:00]} 5. e4 {[%emt 0:00:05]} e6 {[%emt 0:00:00]} 6. Nge2 {[%emt 0:00:17]} Nge7 {[%emt 0:00:11]} 7. O-O {[%emt 0:00:20]} O-O {[%emt 0:00:06]} 8. d3 {[%emt 0:00:07]} d6 {[%emt 0:00:30]} 9. f4 {[%emt 0:01:15]} f5 {[%emt 0:00:28] A36: Symmetrical English vs ...g6: 4 Bg2 Bg7} (9... Rb8 10. Rb1 b6 11. b3 Nd4 12. Bb2 Bb7 13. Qd2 f5 14. Rbe1 Qd7 15. Kh1 Nec6 16. Nxd4 Nxd4 17. Ne2 {½-½ (40) Cruz Estrada,F (2320)-Stella,A (2487) Sabadell 2019}) 10. Be3 {[%emt 0:02:25]} Qd7 $146 {[%emt 0:03:47]} ({Predecessor:} 10... Nd4 11. Rb1 Nec6 12. a3 b6 13. b4 Bb7 14. Bf2 Qd7 15. Nxd4 cxd4 16. Ne2 e5 17. Qb3 {0-1 (28) Paraschiv,P (1810)-Balla,T (2336) Arad 2019}) 11. Qd2 {[%emt 0:05:11]} Rb8 {[%emt 0:00:29]} 12. d4 {[%emt 0:12:08]} b6 {[%emt 0:03:29]} 13. d5 {[%emt 0:02:03]} Nd8 {[%emt 0:01:23]} 14. Rad1 {[%emt 0:02:02]} Qc7 {[%emt 0:03:43]} (14... fxe4 $11 15. Bxe4 Bb7) 15. b3 {[%emt 0:02:03]} ({White should try} 15. Nb5 $16 Qd7 16. dxe6 Qxe6 17. exf5 (17. Qxd6 Qxd6 18. Nxd6 fxe4 $16) (17. Nxd6 fxe4 18. Bxe4 Nb7 $14) 17... gxf5 18. Nec3 (18. Nxa7 Bb7 $14) (18. Nxd6 Nf7 $16)) 15... fxe4 {[%emt 0:01:10]} 16. Bxe4 {[%emt 0:02:13]} ({White should play} 16. Nb5 $16 Qd7 17. dxe6 (17. Bxe4 exd5 18. Bxd5+ Nxd5 $17) 17... Qxe6 18. Nec3 (18. Nxd6 Nf5 $11) (18. Nxa7 Ba6 $15) (18. Qxd6 Qxd6 19. Nxd6 Nf5 $11)) 16... exd5 {[%emt 0:00:58]} 17. Nxd5 {[%emt 0:02:25]} Nxd5 {[%emt 0:01:04]} 18. Qxd5+ {[%emt 0:00:58]} ({Of course not} 18. cxd5 Re8 $15) 18... Nf7 {[%emt 0:01:18]} 19. f5 $2 {[%emt 0:07:48]} (19. Qd2 $11) 19... Bb7 {[%emt 0:01:50]} 20. Qd3 {[%emt 0:04:18]} Ne5 {[%emt 0:02:09]} 21. Bd5+ {[%emt 0:02:18]} Kh8 {[%emt 0:00:35]} 22. Qe4 {[%emt 0:01:58]} Bxd5 {[%emt 0:01:36]} 23. Qxd5 {[%emt 0:01:51]} gxf5 {[%emt 0:01:29]} 24. Qxd6 {[%emt 0:01:00]} Qxd6 {[%emt 0:00:17]} 25. Rxd6 {[%emt 0:00:07]} Rbd8 {[%emt 0:01:02]} 26. Rfd1 {[%emt 0:01:44]} Bf6 {[%emt 0:01:12]} (26... Rde8 $11 27. Nf4 Nxc4 28. bxc4 Rxe3) 27. Bf4 {[%emt 0:12:50]} Nf3+ {[%emt 0:01:09]} 28. Kg2 {[%emt 0:00:56]} Nd4 {[%emt 0:00:20]} 29. Nxd4 {[%emt 0:02:13]} Bxd4 {[%emt 0:02:05]} 30. Rxd8 {[%emt 0:00:37]} Rxd8 {[%emt 0:00:07]} 31. Be5+ {[%emt 0:00:54]} Kg8 {[%emt 0:00:20]} 32. Bxd4 {[%emt 0:00:13]} cxd4 {[%emt 0:00:42]} 33. Kf3 {[%emt 0:00:20]} Kf7 {[%emt 0:00:11]} 34. g4 {[%emt 0:04:44]} Kg6 {[%emt 0:01:44]} 35. h4 {[%emt 0:11:48]} h6 {[%emt 0:00:27]} 36. Kf4 {[%emt 0:00:32]} fxg4 {[%emt 0:02:23]} 37. Kxg4 {[%emt 0:00:06]} Rd6 {[%emt 0:00:19]} 38. h5+ {[%emt 0:06:13]} Kf6 {[%emt 0:00:11]} 39. Kf4 {[%emt 0:00:10]} Rd7 {[%emt 0:00:39]} 40. Rd2 {[%emt 0:04:25]} Rd8 {[%emt 0:00:28]} 41. Rd3 {[%emt 0:01:34]} Rd7 {[%emt 0:00:20]} 42. Ke4 {[%emt 0:01:11]} Kg5 {[%emt 0:00:10]} 43. Rxd4 {[%emt 0:00:06]} Rxd4+ {[%emt 0:00:08]} 44. Kxd4 {[%emt 0:00:06]} Kxh5 {[%emt 0:00:07]} 45. b4 {[%emt 0:00:04]} Kg4 {[%emt 0:00:11]} 46. c5 {[%emt 0:00:16]} bxc5+ {[%emt 0:01:01]} 47. bxc5 {[%emt 0:00:06]} Kf5 {[%emt 0:00:07]} 48. Kd5 {[%emt 0:00:21]} Kf6 {[%emt 0:01:13]} 49. Kd6 {[%emt 0:00:08]} h5 {[%emt 0:00:06]} 50. c6 {[%emt 0:00:06]} h4 {[%emt 0:00:10]} 51. c7 {[%emt 0:00:02]} h3 {[%emt 0:00:10]} 52. c8=Q {[%emt 0:00:09]} h2 {[%emt 0:00:10]} 53. Qc1 {[%emt 0:00:00] Kg5 Qh1 Kf4 Qxh2+ Ke3 Ke5 Kd3 Qf4 Kc3 Qd4+ Kc2 Qe3 Kb2 Qd3 Kxa2 Qc3 Kb1 Qd2 Ka1 Kd4 Kb1 Kc3 Ka1 Qb2#} 1-0

[Event "HUN-chT Youth 2019"]
[Site "Budapest"]
[Date "2019.10.28"]
[Round "4.6"]
[White "Fulop, Csilla"]
[Black "Buri, Kata"]
[Result "1-0"]
[ECO "C50"]
[WhiteElo "1462"]
[BlackElo "1646"]
[Annotator "NA RC"]
[PlyCount "51"]
[EventDate "2019.10.26"]
[EventType "team-tourn"]
[EventCountry "HUN"]
[SourceTitle "playchess.com"]
[Source "ChessBase"]
[SourceQuality "1"]
[TimeControl "5400+30"]

1. e4 {[%emt 0:00:00]} e5 {[%emt 0:00:00]} 2. Nf3 {[%emt 0:00:00]} Nc6 {[%emt 0:00:00]} 3. Bc4 {[%emt 0:00:00]} Bc5 {[%emt 0:00:04]} 4. d3 {[%emt 0:00:21]} Nf6 {[%emt 0:00:22]} 5. Nc3 {[%emt 0:01:01]} d6 {[%emt 0:01:49]} 6. h3 {[%emt 0:01:25]} a6 {[%emt 0:01:37]} 7. Bg5 {[%emt 0:01:03]} h6 {[%emt 0:00:41]} 8. Bh4 {[%emt 0:03:26]} g5 {[%emt 0:04:22]} 9. Bg3 {[%emt 0:01:24]} Bd7 {[%emt 0:15:14]} 10. Qd2 {[%emt 0:09:08]} Bb4 {[%emt 0:07:06]} 11. a3 {[%emt 0:04:27]} Ba5 {[%emt 0:01:17]} 12. b4 {[%emt 0:14:57]} Bb6 {[%emt 0:05:28]} 13. Ne2 {[%emt 0:10:54]} Qe7 {[%emt 0:10:29]} 14. c3 {[%emt 0:09:45]} Be6 {[%emt 0:09:41]} 15. Ba2 {[%emt 0:04:33]} Bxa2 {[%emt 0:03:05]} 16. Qxa2 {[%emt 0:01:17]} Rd8 {[%emt 0:04:20]} 17. Rd1 {[%emt 0:03:38]} d5 {[%emt 0:05:19]} 18. exd5 {[%emt 0:03:47]} Nxd5 {[%emt 0:03:36]} 19. O-O {[%emt 0:00:58]} Kf8 {[%emt 0:10:22]} 20. Rfe1 {[%emt 0:02:13]} Qf6 {[%emt 0:02:11]} 21. Qb2 {[%emt 0:08:02]} Nf4 {[%emt 0:02:51]} 22. d4 {[%emt 0:07:24]} Nxe2+ {[%emt 0:03:50]} 23. Rxe2 {[%emt 0:00:36]} exd4 {[%emt 0:01:06]} 24. Nxd4 {[%emt 0:01:40]} Nxd4 {[%emt 0:03:10]} 25. cxd4 {[%emt 0:00:18]} Rxd4 {[%emt 0:03:36]} 26. Rde1 {[%emt 0:01:38]} 1-0

[Event "HUN-chT Youth 2019"]
[Site "Budapest"]
[Date "2019.10.28"]
[Round "4.7"]
[White "Kokeny, Norbert Adrian"]
[Black "Bohus, Adam"]
[Result "1/2-1/2"]
[ECO "D00"]
[WhiteElo "2292"]
[BlackElo "2229"]
[Annotator "NA"]
[PlyCount "113"]
[EventDate "2019.10.26"]
[EventType "team-tourn"]
[EventCountry "HUN"]
[SourceTitle "playchess.com"]
[Source "ChessBase"]
[SourceQuality "1"]
[TimeControl "5400+30"]

{[%evp 8,73,0,0,32767,-1,12,23,23,20,23,6,17,4,16,-39,-10,-4,-20,-54,-23,-55,-28,-58,-32,-68,-52,-60,-45,-87,-45,-124,-98,32767,-99,-87,-106,-117,-45,-141,-91,-103,-60,-116,-115,-134,-165,-62,-53,-61,0,-156,-70,-180,-173,-149,-131,-191,-172,-623,-623,-639,-638,-566,-594,-543,-613,-585]} 1. d4 {[%emt 0:00:00]} d5 {[%emt 0:00:00]} 2. Bf4 {[%emt 0:00:00]} Nf6 {[%emt 0:00:09]} 3. e3 {[%emt 0:00:00]} c5 {[%emt 0:00:35]} 4. c3 {[%emt 0:00:03]} Nc6 {[%emt 0:00:16]} 5. Nd2 {[%emt 0:00:53]} e6 {[%emt 0:00:28]} 6. Ngf3 {[%emt 0:00:13]} cxd4 {[%emt 0:01:49]} 7. exd4 {[%emt 0:00:13] D02: 1 d4 d5 2 Nf3 sidelines, including 2...Nf6 3 g3 and 2...Nf6 3 Bf4} Nh5 {[%emt 0:00:28]} 8. Be3 {[%emt 0:03:04]} (8. Bg5 f6 9. Be3 Bd6 10. g3 O-O 11. Nh4 g6 12. Be2 Ng7 13. O-O e5 14. dxe5 fxe5 {½-½ (59) Aronian,L (2767)-Nakamura,H (2777) chess.com INT 2018}) 8... Bd6 {[%emt 0:00:50]} 9. Ne5 {[%emt 0:00:44]} g6 {[%emt 0:02:54]} 10. Nd3 {[%emt 0:07:18]} Ng7 {[%emt 0:06:45]} 11. Nf3 {[%emt 0:02:36]} O-O {[%emt 0:02:16]} 12. Be2 {[%emt 0:03:34]} f6 {[%emt 0:06:56]} 13. Qb3 $146 {[%emt 0:08:01]} ({Predecessor:} 13. O-O e5 14. dxe5 fxe5 {1-0 (43) Christiansen,J (2559)-Fus,J (2326) Lisbon 2019}) 13... Na5 {[%emt 0:15:27]} 14. Qc2 {[%emt 0:02:49]} Nc4 {[%emt 0:00:13]} 15. Bc1 {[%emt 0:06:53]} e5 {[%emt 0:09:16]} 16. b3 {[%emt 0:05:11]} Bf5 {[%emt 0:12:18]} 17. Nh4 {[%emt 0:10:27]} Bxd3 {[%emt 0:04:43]} 18. Bxd3 {[%emt 0:02:42]} (18. Qxd3 $11 e4 19. Qh3) 18... Nb6 {[%emt 0:00:07]} 19. Bh6 {[%emt 0:05:36]} (19. dxe5 $15 fxe5 20. g3) 19... e4 {[%emt 0:11:02]} 20. Be2 {[%emt 0:00:32]} f5 {[%emt 0:00:30]} 21. g3 {[%emt 0:00:31]} f4 {[%emt 0:02:20]} 22. Bg4 {[%emt 0:00:31]} Qc7 {[%emt 0:09:46]} (22... f3 $17 23. Qd2 Be7) 23. O-O-O {[%emt 0:01:47]} (23. O-O $15) 23... a5 {[%emt 0:00:21]} 24. a4 {[%emt 0:01:55]} Nd7 {[%emt 0:02:50]} 25. Kb2 {[%emt 0:01:14]} (25. Ng2 $1 $15) 25... b5 {[%emt 0:01:36]} 26. axb5 {[%emt 0:01:46]} Nb6 {[%emt 0:00:06]} (26... Rfb8 $17 27. Be2 f3) 27. Ng2 $1 {[%emt 0:08:15]} a4 {[%emt 0:00:59]} 28. b4 {[%emt 0:01:05]} a3+ {[%emt 0:01:16]} ({Black should try} 28... Nc4+ $15 29. Ka1 f3) 29. Ka2 $2 {[%emt 0:00:13]} (29. Ka1 $1 $11) 29... Na4 {[%emt 0:04:21]} (29... fxg3 $17 30. fxg3 Na4) 30. Rc1 {[%emt 0:02:32]} (30. Nxf4 $15 Nxc3+ 31. Ka1) 30... fxg3 {[%emt 0:00:01]} 31. fxg3 {[%emt 0:00:34] [#]} Qc4+ $1 {[%emt 0:00:36]} 32. Ka1 {[%emt 0:00:57] [#]} Bxb4 $19 {[%emt 0:00:37]} 33. Ne3 $2 {[%emt 0:06:32]} ({Not} 33. cxb4 $2 Qxd4+ 34. Ka2 {[#]} Rf2 $1 $19 {[%mdl 512]}) (33. Bd2 $17 Ba5 34. Bd1) 33... Bxc3+ {[%emt 0:00:44]} 34. Qxc3 {[%emt 0:00:05]} Qxc3+ {[%emt 0:01:13]} 35. Rxc3 {[%emt 0:00:04]} Nxc3 {[%emt 0:00:02]} 36. Rc1 {[%emt 0:00:15]} Nxb5 {[%emt 0:00:31]} 37. Nxd5 {[%emt 0:00:21]} Ra7 {[%emt 0:01:18]} 38. Rc4 {[%emt 0:02:50]} Rd8 {[%emt 0:01:13]} 39. Nf6+ {[%emt 0:00:21]} Kf7 {[%emt 0:00:01]} 40. Nxh7 {[%emt 0:00:50]} Nxd4 {[%emt 0:00:54]} 41. Ng5+ {[%emt 0:00:33]} Kg8 {[%emt 0:00:39]} 42. Nxe4 {[%emt 0:00:58]} Ngf5 {[%emt 0:00:37]} 43. Bg5 {[%emt 0:00:53]} Rb8 {[%emt 0:00:37]} 44. Nf6+ {[%emt 0:02:31]} Kf7 {[%emt 0:00:11]} 45. Bxf5 {[%emt 0:00:46]} Nxf5 {[%emt 0:00:00]} 46. Nd5 {[%emt 0:01:05]} Rb2 {[%emt 0:01:07]} 47. g4 {[%emt 0:00:36]} Nd6 {[%emt 0:00:01]} 48. Rf4+ {[%emt 0:01:15]} Ke6 {[%emt 0:00:01]} 49. Nc3 {[%emt 0:00:18]} Rxh2 {[%emt 0:01:51]} 50. Rf6+ {[%emt 0:00:06]} Ke5 {[%emt 0:00:52]} 51. Rxd6 {[%emt 0:00:03]} Rc7 {[%emt 0:01:03]} 52. Rxg6 {[%emt 0:00:54]} Rf7 {[%emt 0:00:39]} 53. Rb6 {[%emt 0:01:53]} Rf1+ {[%emt 0:00:21]} 54. Rb1 {[%emt 0:00:13]} Rxb1+ {[%emt 0:00:38]} 55. Nxb1 {[%emt 0:00:18]} Rg2 {[%emt 0:00:30]} 56. Nxa3 {[%emt 0:00:24]} Rxg4 {[%emt 0:00:07]} 57. Bc1 {[%emt 0:00:04]} 1/2-1/2

[Event "HUN-chT Youth 2019"]
[Site "Budapest"]
[Date "2019.10.28"]
[Round "4.7"]
[White "Turcsanyi, Vince Gergo"]
[Black "Szabo, Marton Nandor"]
[Result "1-0"]
[ECO "B50"]
[WhiteElo "1810"]
[BlackElo "1803"]
[Annotator "NA RC"]
[PlyCount "36"]
[EventDate "2019.10.26"]
[EventType "team-tourn"]
[EventCountry "HUN"]
[SourceTitle "playchess.com"]
[Source "ChessBase"]
[SourceQuality "1"]
[TimeControl "5400+30"]

{[%evp 19,34,60,32767,61,32767,52,70,43,56,17,57,32767,32767,32767,69,62,68]} 1. e4 {[%emt 0:00:00]} c5 {[%emt 0:00:39]} 2. Nf3 {[%emt 0:00:00]} d6 {[%emt 0:00:06]} 3. d4 {[%emt 0:03:32]} Nf6 {[%emt 0:00:39]} 4. Nc3 {[%emt 0:02:35]} cxd4 5. Qxd4 {[%emt 0:00:21]} a6 {[%emt 0:00:34]} 6. Bg5 {[%emt 0:02:43]} Nc6 {[%emt 0:03:42]} 7. Qd2 {[%emt 0:01:44]} h6 {[%emt 0:07:31]} 8. Bxf6 {[%emt 0:06:48]} exf6 {[%emt 0:00:29]} 9. O-O-O {[%emt 0:01:19]} Be6 {[%emt 0:01:40]} 10. Nd4 {[%emt 0:06:56]} Nxd4 {[%emt 0:08:54]} 11. Qxd4 {[%emt 0:00:46]} Be7 {[%emt 0:04:01]} 12. f4 {[%emt 0:02:44]} O-O {[%emt 0:04:33]} 13. Be2 {[%emt 0:08:16]} Rc8 {[%emt 0:09:18]} 14. g4 {[%emt 0:09:57]} Qc7 {[%emt 0:02:24]} 15. Rd2 {[%emt 0:10:27]} Qa5 {[%emt 0:08:34]} 16. a3 {[%emt 0:01:55]} Qc5 $14 {[%emt 0:02:12]} (16... d5 $5 17. exd5 Rfd8 $11) 17. f5 {[%emt 0:13:27]} Bd7 {[%emt 0:11:24]} 18. Nd5 {[%emt 0:13:53]} Rfe8 {[%emt 0:05:38]} 1-0

[Event "HUN-chT Youth 2019"]
[Site "Budapest"]
[Date "2019.10.28"]
[Round "4.8"]
[White "Pasztor, Balazs"]
[Black "Baski, Barnabas"]
[Result "1-0"]
[ECO "C07"]
[WhiteElo "2152"]
[BlackElo "2037"]
[Annotator "NA"]
[PlyCount "91"]
[EventDate "2019.10.26"]
[EventType "team-tourn"]
[EventCountry "HUN"]
[SourceTitle "playchess.com"]
[Source "ChessBase"]
[SourceQuality "1"]
[TimeControl "5400+30"]

1. e4 {[%emt 0:00:00]} e6 {[%emt 0:00:00]} 2. d4 {[%emt 0:00:00]} d5 {[%emt 0:00:00]} 3. Nd2 {[%emt 0:00:23]} c5 {[%emt 0:00:03]} 4. exd5 {[%emt 0:00:34]} Qxd5 {[%emt 0:00:09]} 5. dxc5 {[%emt 0:00:34]} Bxc5 {[%emt 0:00:19]} 6. Ngf3 {[%emt 0:00:44]} Nf6 {[%emt 0:00:16]} 7. Bc4 {[%emt 0:00:56]} Qc6 {[%emt 0:00:39] C07: French Tarrasch: 3...c5, 4 Ngf3 and 4 exd5 Qxd5} 8. Qe2 {[%emt 0:00:41]} a6 {[%emt 0:01:02]} (8... O-O 9. Nb3 Nbd7 10. Bf4 Bd6 11. Nbd4 Qb6 12. Bxd6 Qxd6 13. O-O-O Qf4+ 14. Kb1 Nb6 15. Bb3 {0-1 (28) Naiditsch,A (2705)-Le,Q (2737) Riadh 2017}) 9. a4 {[%emt 0:00:52]} Nbd7 {[%emt 0:04:18]} 10. O-O {[%emt 0:02:43]} O-O {[%emt 0:01:40]} 11. Nb3 {[%emt 0:04:05]} b6 {[%emt 0:15:09]} 12. Nxc5 {[%emt 0:03:51]} Nxc5 {[%emt 0:05:56]} 13. Ne5 {[%emt 0:05:21]} Qe8 {[%emt 0:05:20]} 14. b3 {[%emt 0:14:05]} Bb7 {[%emt 0:02:00]} 15. Bb2 $146 {[%emt 0:01:52]} ({Predecessor:} 15. Ba3) 15... Nd5 {[%emt 0:06:25]} 16. Rfe1 {[%emt 0:13:53]} Kh8 {[%emt 0:20:21]} ({Black should play} 16... f6 $14) 17. Qg4 {[%emt 0:10:03]} f6 {[%emt 0:08:07]} 18. Nf3 {[%emt 0:07:07]} (18. Nd3 $16) 18... e5 {[%emt 0:02:59]} 19. Nh4 {[%emt 0:05:41]} Rd8 {[%emt 0:06:25]} 20. Rad1 {[%emt 0:02:29]} b5 {[%emt 0:02:43]} 21. axb5 {[%emt 0:02:39]} axb5 {[%emt 0:00:14]} 22. Bxd5 $1 {[%emt 0:02:02]} Bxd5 {[%emt 0:01:11]} 23. Ba3 {[%emt 0:02:38]} Qc6 {[%emt 0:03:53]} 24. Qh3 {[%emt 0:05:32]} Bf7 {[%emt 0:03:48]} 25. Qe3 {[%emt 0:01:15]} Rxd1 {[%emt 0:01:57]} 26. Rxd1 {[%emt 0:00:14]} Rc8 {[%emt 0:01:20]} 27. Nf5 $11 {[%emt 0:04:37]} Ne6 {[%emt 0:01:01]} 28. Ne7 {[%emt 0:02:41]} Qxc2 {[%emt 0:00:33]} 29. Rc1 {[%emt 0:04:05]} Rd8 {[%emt 0:00:24]} 30. Qf3 {[%emt 0:01:19]} Qd3 {[%emt 0:02:06]} 31. Qxd3 {[%emt 0:01:09]} Rxd3 {[%emt 0:00:02]} 32. Rc8+ {[%emt 0:01:11]} Rd8 {[%emt 0:00:10]} 33. b4 {[%emt 0:00:37]} Rxc8 {[%emt 0:00:55]} 34. Nxc8 {[%emt 0:00:07]} Kg8 {[%emt 0:00:43]} 35. Nd6 {[%emt 0:00:34]} Nc7 {[%emt 0:01:02]} 36. Bc1 {[%emt 0:00:50]} Bc4 {[%emt 0:00:41]} 37. f4 {[%emt 0:00:29]} Nd5 {[%emt 0:03:34]} 38. fxe5 {[%emt 0:00:15]} fxe5 {[%emt 0:00:55]} 39. Bd2 {[%emt 0:00:17]} g6 {[%emt 0:00:22]} 40. Kf2 {[%emt 0:00:26]} Kf8 {[%emt 0:00:30]} 41. Kf3 {[%emt 0:00:43]} Ke7 {[%emt 0:00:21]} 42. Ne4 {[%emt 0:00:23]} Nf6 {[%emt 0:00:41]} 43. Bg5 {[%emt 0:00:27]} Bd5 {[%emt 0:00:34]} 44. Bxf6+ {[%emt 0:00:07]} Ke6 {[%emt 0:00:06]} 45. Bd8 {[%emt 0:00:11]} Kf5 {[%emt 0:00:10]} 46. g4+ {[%emt 0:00:08]} 1-0